Cogmind - Beta 13 @@@ ROGUE MODE // 2024.04.05 @ 07:59:08 Player: Bulbasornado Result: Destroyed by H-55 Commando with Gauss Rifle Performance ------------- Evolutions (1) 500 Regions Visited (6) 1200 Robots Destroyed (100) 500 Value Destroyed (1990) 1990 Prototype IDs (5) 100 Alien Tech Used (0) 0 Bonus (-10) -10 TOTAL SCORE: 4280 Bonus ------- High Alert Combat Kills 72 Follower Combat Kills 49 Friendly Fire -131 Cogmind --------- Core Integrity 0/400 Matter 290/300 Energy 125/125 System Corruption 0% Temperature Cool (0) Movement Rolling (105) Ox1 Location -8/Mines Parts ------- > --- POWER (1) -------- Light Ion Engine > --- PROPULSION (2) --- Armored Wheel Armored Wheel > --- UTILITY (4) ------ Large Storage Unit Light Armor Plating Light Armor Plating Medium Armor Plating > --- WEAPON (2) ------- Katana Makeshift Axe > --- INVENTORY (15) --- Light Treads Light Treads Light Treads Improved Treads Improved Hover Unit Improved Hover Unit Improved Hover Unit Improved Hover Unit Combat Airjet Combat Airjet Large Storage Unit Signal Interpreter Light Armor Plating Medium Armor Plating Medium Armor Plating Peak State ------------ > --- POWER ------------ Light Ion Engine > --- PROPULSION ------- Improved Treads Improved Treads > --- UTILITY ---------- Large Storage Unit Experimental Sensor Array Medium Armor Plating Medium Armor Plating > --- WEAPON ----------- Katana Makeshift Axe > --- INVENTORY -------- Improved Treads Improved Treads Improved Hover Unit Improved Hover Unit Improved Hover Unit Improved Hover Unit Combat Airjet Combat Airjet Large Storage Unit Weight Redist. System Signal Interpreter Signal Interpreter Medium Armor Plating Heavy Assault Rifle Light Cannon [Rating: 29] Favorites ----------- Power Light Ion Engine Engine Light Ion Engine Propulsion Improved Treads Treads Improved Treads Wheel Wheel Utility Large Storage Unit Device Experimental Sensor Array Storage Large Storage Unit Processor Signal Interpreter Protection Light Armor Plating Weapon Makeshift Axe Energy Gun Particle Gun Ballistic Gun Heavy Assault Rifle Ballistic Cannon Light Cannon Launcher Grenade Launcher Slashing Weapon Makeshift Axe Build | -11 -10 -10 -9 -9 -9 -8 ------- Run | Yrd Mat Min Mat Min Exi Min Slots Evolved 2 | . . . 2 . . . Power . | . . . . . . . Propulsion . | . . . . . . . Utility 2 | . . . 2 . . . Weapon . | . . . . . . . Parts Attached 108 | 6 30 11 49 1 11 . Power 12 | 1 3 1 6 1 . . Engine 12 | 1 3 1 6 1 . . Core . | . . . . . . . Reactor . | . . . . . . . Propulsion 27 | 2 12 2 9 . 2 . Treads 16 | 2 3 2 9 . . . Leg . | . . . . . . . Wheel 11 | . 9 . . . 2 . Hover . | . . . . . . . Flight . | . . . . . . . Utility 50 | 1 10 4 26 . 9 . Device 9 | . 2 2 5 . . . Storage 10 | 1 3 . 2 . 4 . Processor 2 | . . . 2 . . . Hackware . | . . . . . . . Protection 29 | . 5 2 17 . 5 . Artifact . | . . . . . . . Weapon 19 | 2 5 4 8 . . . Energy Gun 1 | . . . 1 . . . Energy Cannon . | . . . . . . . Ballistic Gun 5 | 2 1 1 1 . . . Ballistic Cannon 4 | . 1 1 2 . . . Launcher 1 | . 1 . . . . . Special Weapon . | . . . . . . . Impact Weapon . | . . . . . . . Slashing Weapon 8 | . 2 2 4 . . . Piercing Weapon . | . . . . . . . Special Melee Weapon . | . . . . . . . Unidentified Prototypes 1 | . . 1 . . . . Parts Lost 11 | . 1 . 10 . . . Power 1 | . . . 1 . . . Propulsion 3 | . . . 3 . . . Utility 4 | . . . 4 . . . Weapon 3 | . 1 . 2 . . . Highest Loss Streak 7 | . 1 . 7 . . . To Critical Strikes . | . . . . . . . Average Slot Usage (%) 98 | . 98 100 98 100 100 100 Engine 11 | . 13 14 10 11 11 11 Treads 14 | . 1 20 21 22 . . Wheel 9 | . 26 7 . . 22 22 Device 5 | . 2 4 8 . . . Storage 12 | . 13 14 11 11 11 11 Protection 18 | . 11 9 20 33 32 33 Ballistic Gun 4 | . 1 9 5 . . . Ballistic Cannon 5 | . 4 11 5 . . . Launcher 1 | . 8 . . . . . Slashing Weapon 12 | . 12 6 11 22 22 22 Naked Turns . | . . . . . . . Heaviest Build 49 | 4 31 32 49 41 41 41 Greatest Support 46 | 3 40 40 46 43 43 24 Greatest Overweight (x) 5 | 1 5 1 1 . 1 1 Average Overweight (x) . | . . . . . . 1 Largest Inventory Capacity 35 | 8 15 15 15 15 35 15 Average Capacity 13 | 5 9 15 15 15 15 15 Most Carried 15 | 5 15 15 15 15 15 15 Average Carried 13 | 3 9 14 14 15 15 15 Final Capacity 15 | 5 15 15 15 15 15 15 Final Carried 15 | 5 15 15 15 15 15 15 Class Distribution -------------------- 73% | Mutant 26% | Scavenger-Mutant Dominant Class ---------------- Mutant | -10/Materials Mutant | -10/Mines Mutant | -9/Materials Scavenger-Mutant | -9/Mines Scavenger-Mutant | -9/Exiles Scavenger-Mutant | -8/Mines Resources | -11 -10 -10 -9 -9 -9 -8 ----------- Run | Yrd Mat Min Mat Min Exi Min Matter Collected 2338 | 396 558 161 1087 46 90 . Remotely . | . . . . . . . Salvage Created 2724 | 290 599 43 1688 104 . . Parts 173 | 18 46 2 97 10 . . Haulers Intercepted 8 | . 2 . 6 . . . Recyclers Shooed 1 | . . . . 1 . . Parts Field Recycled . | . . . . . . . Retrieved Matter . | . . . . . . . Parts Self-Destructed . | . . . . . . . Prevented . | . . . . . . . Kills | -11 -10 -10 -9 -9 -9 -8 ------- Run | Yrd Mat Min Mat Min Exi Min Combat Hostiles Destroyed 49 | . 18 1 30 . . . Melee 12 | . 4 . 8 . . . Guns 6 | . . . 6 . . . Cannons 17 | . . 1 16 . . . AOE 14 | . 14 . . . . . Classes Destroyed 14 | 3 6 1 4 . . . Worker 14 | 2 7 2 3 . . . Builder 6 | . 3 . 2 1 . . Tunneler 10 | 9 1 . . . . . Hauler 8 | . 2 . 6 . . . Recycler 3 | 1 . . 1 1 . . Mechanic 1 | . . . 1 . . . Operator 2 | . 1 . 1 . . . Watcher 7 | . 3 . 4 . . . Swarmer 7 | . 6 . 1 . . . Grunt 33 | . 12 . 21 . . . Brawler 1 | . . . 1 . . . Duelist 1 | . . . 1 . . . Sentry 7 | . . . 7 . . . Assembled 1 | . . 1 . . . . Best Kill Streak 9 | 5 9 1 5 2 . . Combat Bots Only 5 | . 5 1 3 . . . Max Kills in Single Turn 2 | 1 2 1 1 1 . . Gunslinging . | . . . . . . . Exploded 2 | . 2 . . . . . Melee 1 | . 1 . 1 . . . Uniques/NPCs Destroyed . | . . . . . . . Combat | -11 -10 -10 -9 -9 -9 -8 -------- Run | Yrd Mat Min Mat Min Exi Min Hostile Shots Fired 240 | . 34 6 195 . . 5 Missed 67 | . 10 4 52 . . 1 Damage Taken 2602 | . 426 62 2047 . . 67 Core 567 | . 131 20 384 . . 32 Absorbed by Shields . | . . . . . . . Redirected to Shielding 5 | . . . 5 . . . Core Remaining (%) 69 | 100 . 39 . . . . Volleys Fired 166 | 34 28 6 98 . . . Largest 2 | 2 2 2 2 . . . Hottest 58 | 40 50 58 58 . . . Shots Fired 301 | 68 29 10 194 . . . Gun 171 | 68 1 4 98 . . . Cannon 105 | . 3 6 96 . . . Launcher 25 | . 25 . . . . . Special . | . . . . . . . Kinetic 276 | 68 4 10 194 . . . Thermal . | . . . . . . . Explosive 25 | . 25 . . . . . Electromagnetic . | . . . . . . . Robot Hit Streak 14 | 14 4 2 8 . . . Robot Miss Streak 5 | 2 1 1 5 . . . Penetration Max . | . . . . . . . Secondary Targets . | . . . . . . . Shots Hit Robots 238 | 39 29 8 158 3 . 1 Core Hits 134 | 17 53 5 57 2 . . Critical Kills 1 | 1 . . . . . . Critical Parts Destroyed 2 | . . . 2 . . . Critical Strikes 9 | 1 . . 7 . . 1 Destroy 3 | 1 . . 2 . . . Blast 3 | . . . 3 . . . Sever 3 | . . . 2 . . 1 Melee Attacks 86 | . 34 4 43 3 . 2 Impact . | . . . . . . . Slashing 86 | . 34 4 43 3 . 2 Piercing . | . . . . . . . Sneak Attacks 24 | . 16 1 5 2 . . Combat Hostiles . | . . . . . . . Follow-up Attacks 6 | . . . 6 . . . Damage Inflicted 6723 | 415 2342 231 3489 217 . 29 Guns 1506 | 415 . 48 1043 . . . Cannons 1197 | . 36 74 1087 . . . Explosions 1299 | . 1299 . . . . . Melee 2721 | . 1007 109 1359 217 . 29 Ramming . | . . . . . . . Kinetic 2703 | 415 36 122 2130 . . . Thermal . | . . . . . . . Explosive 1299 | . 1299 . . . . . Electromagnetic . | . . . . . . . Impact . | . . . . . . . Slashing 2721 | . 1007 109 1359 217 . 29 Piercing . | . . . . . . . Highest Corruption 2 | . 2 2 . . . . Average Corruption 1 | . 1 2 . . . . Corruption Purged . | . . . . . . . Corruption Blocked . | . . . . . . . Effects 23 | . 5 18 . . . . Message Errors 5 | . 2 3 . . . . Matter Fused 2 | . . 2 . . . . Heat Flow Errors 3 | . 1 2 . . . . Energy Discharges 4 | . . 4 . . . . Data Loss (minor) 5 | . 1 4 . . . . Data Loss (major) 3 | . 1 2 . . . . Alerts 1 | . . 1 . . . . Overload Shots . | . . . . . . . Overflow Damage 213 | . 144 . 69 . . . Projectiles 16 | . . . 16 . . . Explosions 14 | . 14 . . . . . Melee 183 | . 130 . 53 . . . Knockbacks 13 | . . 1 12 . . . Impact . | . . . . . . . Kinetic 13 | . . 1 12 . . . Secondary . | . . . . . . . Self-Inflicted Damage . | . . . . . . . Shots . | . . . . . . . Rammed . | . . . . . . . Targets Rammed . | . . . . . . . Kicked . | . . . . . . . Crushed . | . . . . . . . Highest Temperature 210 | . 90 210 120 . . . Average Temperature 40 | . 15 59 41 . . . Received Heat Transfer 810 | . 69 . 741 . . . Siege Activations . | . . . . . . . Robots Corrupted . | . . . . . . . Combat Hostiles . | . . . . . . . Parts Fried . | . . . . . . . Impact Corruptions . | . . . . . . . Robots Melted . | . . . . . . . Combat Hostiles . | . . . . . . . Parts Melted . | . . . . . . . Heat Transferred . | . . . . . . . Parts Sabotaged . | . . . . . . . Parts Stolen . | . . . . . . . Parts Stripped . | . . . . . . . Power Chain Reactions . | . . . . . . . Alert | -11 -10 -10 -9 -9 -9 -8 ------- Run | Yrd Mat Min Mat Min Exi Min Peak Influence 495 | 60 482 144 495 130 . 15 Initial 129 | . 39 129 . 120 . . Average 235 | 29 344 60 294 126 . 13 Maximum Alert Level 2 | . 2 . 2 . . . Low Security (%) 43 | 100 9 100 23 100 . 100 Level 1 41 | . 65 . 57 . . . Level 2 14 | . 24 . 19 . . . Level 3 . | . . . . . . . Level 4 . | . . . . . . . Level 5 . | . . . . . . . High Security . | . . . . . . . Max Security . | . . . . . . . Squads Dispatched 9 | . 3 . 6 . . . Investigation 6 | . 2 . 4 . . . Extermination . | . . . . . . . Reinforcement 3 | . 1 . 2 . . . Assault . | . . . . . . . Garrison . | . . . . . . . Intercept . | . . . . . . . Searches Triggered . | . . . . . . . Construction Impeded . | . . . . . . . Haulers Reinforced . | . . . . . . . Active Scanning Responses . | . . . . . . . Cargo Convoy Interrupts . | . . . . . . . Stealth | -11 -10 -10 -9 -9 -9 -8 --------- Run | Yrd Mat Min Mat Min Exi Min Distress Signals 3 | . 3 . . . . . Communications Jammed . | . . . . . . . Distress Signals . | . . . . . . . Times Spotted 76 | . 22 9 44 . . 1 Peak Tracking Total 9 | . 5 9 5 . . 1 Tactical Retreats . | . . . . . . . Traps | -11 -10 -10 -9 -9 -9 -8 ------- Run | Yrd Mat Min Mat Min Exi Min Traps Triggered 6 | . 5 . 1 . . . Indirectly . | . . . . . . . Trap Hack Attempts . | . . . . . . . Triggered . | . . . . . . . Disarmed . | . . . . . . . Reprogrammed . | . . . . . . . Reused . | . . . . . . . Traps Extracted . | . . . . . . . Installed . | . . . . . . . Triggered . | . . . . . . . Machines | -11 -10 -10 -9 -9 -9 -8 ---------- Run | Yrd Mat Min Mat Min Exi Min Machines Disabled 9 | . 3 . 6 . . . Max in Single Turn 2 | . 2 . 1 . . . Machines Repaired . | . . . . . . . Machines Dismantled . | . . . . . . . Machines Sabotaged . | . . . . . . . Overloaded Fab Kills . | . . . . . . . Hacking | -11 -10 -10 -9 -9 -9 -8 --------- Run | Yrd Mat Min Mat Min Exi Min Machines Accessed 22 | . 8 1 9 . 4 . Terminals 12 | . 6 . 6 . . . Fabricators . | . . . . . . . Repair Stations 1 | . 1 . . . . . Recycling Units 2 | . 1 . 1 . . . Scanalyzers 2 | . . . 2 . . . Garrison Access . | . . . . . . . Total Hacks 71 | . 31 1 35 . 4 . Successful 34 | . 12 1 17 . 4 . Failed 36 | . 19 . 17 . . . Catastrophic 4 | . . . 4 . . . Database Lockouts 1 | . . . 1 . . . Manual 31 | . 14 . 15 . 2 . Terminals 46 | . 25 . 21 . . . Fabricators . | . . . . . . . Repair Stations 3 | . 3 . . . . . Recycling Units 6 | . 3 . 3 . . . Scanalyzers 11 | . . . 11 . . . Garrison Access . | . . . . . . . Terminal Hacks 19 | . 9 1 5 . 4 . Record 4 | . . . . . 4 . Robot Analysis 5 | . 4 . 1 . . . Prototype ID Bank 2 | . 1 . 1 . . . Open Door 1 | . . 1 . . . . Alert Level 2 | . 1 . 1 . . . Unreport Threat 2 | . 1 . 1 . . . Locate Traps 2 | . 1 . 1 . . . Hauler Manifests 1 | . 1 . . . . . Fabricator Hacks . | . . . . . . . Repair Station Hacks . | . . . . . . . Recycling Unit Hacks 3 | . 2 . 1 . . . Report Inventory 2 | . 1 . 1 . . . Retrieve Components 1 | . 1 . . . . . Scanalyzer 9 | . . . 9 . . . Insert Component 4 | . . . 4 . . . Analyze 5 | . . . 5 . . . Garrison Access Hacks . | . . . . . . . Unauthorized Hacks 3 | . 1 . 2 . . . Terminals . | . . . . . . . Fabricators . | . . . . . . . Repair Stations . | . . . . . . . Recycling Units 3 | . 1 . 2 . . . Reject 1 | . . . 1 . . . Mask 1 | . . . 1 . . . Tunnel 1 | . 1 . . . . . Scanalyzers . | . . . . . . . Garrison Access . | . . . . . . . Data Cores Recovered . | . . . . . . . Used . | . . . . . . . Hacking Detections 16 | . 7 . 9 . . . Full Trace Events 9 | . 4 . 5 . . . Feedback Events 1 | . 1 . . . . . Corruption 1 | . 1 . . . . . Feedback Blocked . | . . . . . . . Robot Schematics Acquired . | . . . . . . . Robots Built . | . . . . . . . Authchips . | . . . . . . . Time . | . . . . . . . Total Robot Build Rating . | . . . . . . . Part Schematics Acquired 4 | . . . 4 . . . Parts Built . | . . . . . . . Authchips . | . . . . . . . Time . | . . . . . . . Total Part Build Rating . | . . . . . . . Parts Repaired . | . . . . . . . Time . | . . . . . . . Parts Recycled . | . . . . . . . Recycled Matter . | . . . . . . . Retrieved Matter . | . . . . . . . Retrieved Components 2 | . 2 . . . . . Parts Scanalyzed 4 | . . . 4 . . . Part Schematics Acquired 4 | . . . 4 . . . Parts Damaged . | . . . . . . . Bothacking | -11 -10 -10 -9 -9 -9 -8 ------------ Run | Yrd Mat Min Mat Min Exi Min Used RIF Installer . | . . . . . . . Robots Hacked . | . . . . . . . Non-combat . | . . . . . . . Combat . | . . . . . . . Robot Hacks Applied . | . . . . . . . Relay Couplers Released . | . . . . . . . Fabnet Peak Effective % . | . . . . . . . Robots Rewired . | . . . . . . . Allies Hacked . | . . . . . . . Hacks Repelled . | . . . . . . . Allies | -11 -10 -10 -9 -9 -9 -8 -------- Run | Yrd Mat Min Mat Min Exi Min Total Allies 4 | . . 4 . . . . Largest Group 4 | . . 4 3 . . . Highest-Rated Group 71 | . . 71 40 . . . Highest-Rated Ally 31 | . . 31 16 . . . Total Orders . | . . . . . . . Ally Attacks 28 | . . 7 21 . . . Total Damage 234 | . . 21 213 . . . Kills 4 | . . 1 3 . . . Allies Corrupted . | . . . . . . . Allies Melted . | . . . . . . . Intel | -11 -10 -10 -9 -9 -9 -8 ------- Run | Yrd Mat Min Mat Min Exi Min Robot Analysis Total 5 | . 4 . 1 . . . Derelict Logs Recovered 3 | . . 2 . 1 . . Drone Launches . | . . . . . . . Drone Recoveries . | . . . . . . . Exploration | -11 -10 -10 -9 -9 -9 -8 ------------- Run | Yrd Mat Min Mat Min Exi Min Turns Passed 5049 | 246 1004 968 2181 163 479 8 Spaces Moved 3135 | 89 842 675 992 98 436 3 Core 100 | 89 11 . . . . . Treads 1494 | . 4 398 992 98 2 . Legs . | . . . . . . . Wheels 1541 | . 827 277 . . 434 3 Hover . | . . . . . . . Flight . | . . . . . . . Fastest Speed 50 | 50 50 95 160 160 105 105 Average Speed 125 | 52 85 133 164 160 105 105 Slowest Speed 300 | 100 300 160 240 160 160 105 Overloaded Moves . | . . . . . . . Propulsion Burnouts . | . . . . . . . Robots Hopped . | . . . . . . . Cave-ins Triggered . | . . . . . . . Exploration Rate (%) 55 | 4 99 98 78 14 91 3 Regions Visited 6 Branch Regions 4 Pre-discovered Areas 4 | . 1 2 . 1 . . Known Exits Taken . | . . . . . . . Unknown Exits Taken 6 | 1 1 1 1 1 1 . Scrap Searched 2 | . . 1 . 1 . . Spaces Dug 4 | . 2 2 . . . . Terrain Destroyed 92 | . 90 2 . . . . Melee 4 | . 2 2 . . . . Projectile . | . . . . . . . AOE 88 | . 88 . . . . . Terrain Rammed . | . . . . . . . Walls Destroyed . | . . . . . . . Machines Disabled . | . . . . . . . Actions | -11 -10 -10 -9 -9 -9 -8 --------- Run | Yrd Mat Min Mat Min Exi Min Total 3852 | 227 1030 731 1302 102 455 5 Wait 232 | 90 55 18 69 . . . Move 3129 | 88 841 674 991 97 435 3 Hop . | . . . . . . . Pick Up 61 | 5 22 8 26 . . . Fast Attach 32 | 6 6 . 11 . 9 . Attach 14 | . 3 1 10 . . . Detach 4 | 2 1 . 1 . . . Swap 62 | . 21 10 28 1 2 . Drop 74 | 2 19 10 33 1 9 . Fire 166 | 34 28 6 98 . . . Melee 78 | . 34 4 35 3 . 2 Ram . | . . . . . . . Kick . | . . . . . . . Crush . | . . . . . . . Escape Stasis . | . . . . . . . Rewire . | . . . . . . . Trap . | . . . . . . . Miscellaneous . | . . . . . . . Route ------- -11/Scrapyard -10/Materials (discovered 4 exits: *Mat x3 / *Min) -10/Mines (discovered 2 exits: *Mat x2) -9/Materials (discovered 3 exits: [*Mat] / [*Min x2]) -9/Mines (discovered 2 exits: [*Mat] / *Exi) -9/Exiles -8/Mines History --------- Turn | Location | Event 9 | -11/Scrapyard | Discovered new exit (range 15) 247 | -11/Scrapyard | Entered Materials 304 | -10/Materials | Build established: Mutant 456 | -10/Materials | Discovered new exit (range 9) 489 | -10/Materials | Discovered new exit (range 16) 813 | -10/Materials | Discovered new exit (range 14) 886 | -10/Materials | Discovered new exit (range 13) 892 | -10/Materials | Core integrity fell below 50% 1251 | -10/Materials | Entered Mines 1255 | -10/Mines | Discovered new exit (range 10) 1259 | -10/Mines | Met a Derelict bent on vengeance 1282 | -10/Mines | A weapon hastily lodged in a ceiling crevice suddenly fell to the ground 1293 | -10/Mines | Assembled infested the area 1298 | -10/Mines | Assisted by a Guerilla fighting off Assembled 1502 | -10/Mines | Found a damaged Exp. Sensor Array with a note attached 1504 | -10/Mines | Found Prototype Device 1505 | -10/Mines | Identified Exp. Sensor Array 1518 | -10/Mines | Joined a pair of Derelicts in attacking an 0b10 outpost 1614 | -10/Mines | Learned location of Storage (-8) 1633 | -10/Mines | Discovered new exit (range 5) 1668 | -10/Mines | Received a Mining Laser from a helpful Derelict 1755 | -10/Mines | Assisted by bots powering up and referring to "LRC-V3" 2183 | -10/Mines | Found the Drone Emporium 2219 | -10/Mines | Entered Materials 2219 | -9/Materials | Accompanied by 3 allies 2219 | -9/Materials | Evolved 2 slots: Utility x2 2309 | -9/Materials | Lost 3 allies 2469 | -9/Materials | Discovered new exit (range 9) 2693 | -9/Materials | Discovered new exit (range 15) 3484 | -9/Materials | Core integrity fell below 50% 3514 | -9/Materials | Lost 7 parts (1p2n2u2w) 3799 | -9/Materials | Discovered new exit (range 6) 3816 | -9/Materials | Core integrity fell below 20% 3959 | -9/Materials | Central database locked down 4332 | -9/Materials | Build established: Scavenger-Mutant 4400 | -9/Materials | Entered Mines 4404 | -9/Mines | Learned Materials non-interactive machine intel 4491 | -9/Mines | Discovered new exit (range 10) 4557 | -9/Mines | Deemed a non-threat by the Exiles lab entrance 4557 | -9/Mines | Discovered new exit (range 5) 4563 | -9/Mines | Entered Exiles 4563 | -9/Exiles | Found Exiles lab abandoned 5030 | -9/Exiles | Discovered new exit (range 14) 5042 | -9/Exiles | Entered Mines 5050 | -8/Mines | Destroyed by H-55 Commando with Gauss Rifle Last Messages --------------- probably going to wreck your life and you're too stupid to see it coming. 04982_ Extracted 2 energy. 04983_ Dropped Lgt. Armor Plating. 04983_ Acquired Med. Battery. 04986_ Dropped Med. Battery. 04986_ Acquired Lgt. Armor Plating. 05007_ Extracted 90 matter. 05008_ Dropped Lgt. Armor Plating. 05008_ Acquired Med. Matter Pod. 05010_ Dropped Med. Matter Pod. 05011_ Acquired Lgt. Armor Plating. 05030_ EXIT=FOUND LOCATION=UNKNOWN GOAL=ESCAPE 05043_ Slug penetrates Laser Drill. 05043_ Laser Drill disabled. 05045_ H-55 Commando Carbon-fiber Leg severed. 05050_ Penetrated by Slug. [Achievement: Just Browsing] Map ----- +----------------------------------------------------+ | ???????????????????????????????? | | ???????????????????????????????? | | ???????????????????????????????? | | ???????????????????????????????? | | ???????????????????????????????? | | ???????????????????????????????? | | ???????????????????????????????? | | ???????????????????????????????? | | ???????????????????????????????? | | ???????????????????????????????? | | ???????????????????????????????? | | ???????????????????????????????? | | ???????????????????????????????? | | ???????????????????????????????? | | ???????????????????????????????? | | ???????????????????????????????? | | ???????????????????????????????? | | ???????????????????????????????? | | ???????????????????????????????? | | ???????????????????????????????? | | ???????????????????????????????? | | ???????????????????????????????? | | ????????????????????##########?? | | ????????????????????# #?? | | ????????????????????# h"""#?? | | ????????????????????# @"""#?? | | ?????????????????#### ""#?? | | ?????????????????# #?? | | ?????????????????# ## #?? | | ????????????????????# #?? | | ????????????????????##########?? | | ???????????????????????????????? | | ???????????????????????????????? | | ???????????????????????????????? | | ???????????????????????????????? | | ???????????????????????????????? | | ???????????????????????????????? | | ???????????????????????????????? | | ???????????????????????????????? | | ???????????????????????????????? | | ???????????????????????????????? | | ???????????????????????????????? | | ???????????????????????????????? | | ???????????????????????????????? | | ???????????????????????????????? | | ???????????????????????????????? | | | | | | | | | +----------------------------------------------------+ Best States ------------- Heat Dissipation 28 Energy Generation 12 Energy Capacity 265 Matter Stores 300 Matter Capacity 400 Sight Range 16 Robot Scan Range 20 Terrain Scan Density 10 Additional Mass Support 6 Armor Coverage 600 Core Shielding 20 Weapon Shielding 33 Evasion (%) 50 Recoil Reduction 2 Item Schematics ----------------- Cmb. Airjet | -9/Materials | Scanalyzed Mak. Axe | -9/Materials | Scanalyzed Imp. Flight Unit | -9/Materials | Scanalyzed Med. Armor Plating | -9/Materials | Scanalyzed Robot Schematics ------------------ None Fabricated ------------ Nothing Alien Tech Used ----------------- None Achievements -------------- Just Browsing root@ Challenges ------------ None Game ------ Seed WaveSubdwellerTerrabomb Manual? 0 Play Time 02:08:11 Cumulative 34.1 hours Start 2024.04.04 @ 18:59:53 End 2024.04.05 @ 07:59:08 Sessions 7 Manual Loads 0 Difficulty Rogue Special Mode None Game No. 14 Rogue 13 Adventurer 1 Explorer 0 Win Type - Total 0 Types 0/0/0/0/0/0/0/0/0 Lore% 21 Gallery% 25 Achievement% 19 Wizard Run 0 Options --------- Layout 0 ASCII 0 Keyboard 0 Movement Mouse Keybinds 0 Fullscreen 2 Font 18/Smallcaps Map View 76x50 Zoom Use 0% Tactical HUD 1 Map Filters NONE Filters NONE Steam 1 RUN: 2376359c-c914-4d0e-9605-743773201267